bitfinex/quotes_SOLUSD_20251030
["timestamp","ask_amount","ask_price","bid_price","bid_amount"]
[1761863746712,4.07181724,183.23,183.22,0.67]
[1761863746932,13.47420348,183.25,183.2,9.35375252]
[1761863747139,4.07181724,183.23,183.2,8.68375252]
[1761863747326,4.07181724,183.23,183.18,61.7]
[1761863747327,3.22527037,183.21,183.18,61.7]
[1761863747645,3.22527037,183.21,183.18,0.67]
[1761863747942,3.22527037,183.21,183.16,70.38471751]
[1761863747943,4.0738654,183.2,183.16,70.38471751]
[1761863748242,4.0738654,183.2,183.1,9.78882769]
[1761863748243,20.592,183.16,183.1,0.67]
[1761863748424,3.22527037,183.14,183.11,7.56098999]
[1761863748627,3.94527037,183.15,183.11,7.56098999]
[1761863748953,5.46030359,183.14,183.11,7.56098999]
[1761863749836,8.68557396,183.14,183.11,7.56098999]
[1761863750146,5.46030359,183.14,183.11,7.56098999]
[1761863750922,9.40531124,183.15,183.11,7.56098999]
[1761863751645,6.18004087,183.15,183.11,7.56098999]
[1761863751828,8.68531124,183.15,183.12,0.67]
[1761863752040,5.46004087,183.15,183.12,0.67]
[1761863752549,3.22527037,183.15,183.11,6.89098999]
[1761863752730,3.22527037,183.15,183.12,0.67]
[1761863753144,5.46018777,183.15,183.12,0.67]
[1761863754023,8.68545814,183.15,183.12,0.67]
[1761863754947,4.08152545,183.14,183.12,0.67]
[1761863755127,4.08152545,183.13,183.12,0.67]
[1761863755445,3.22527037,183.15,183.12,0.67]
[1761863755446,8.68551263,183.15,183.12,0.67]
[1761863755740,3.22527037,183.13,183.11,6.89098999]
[1761863755929,3.22527037,183.12,183.11,6.89098999]
[1761863756332,7.30781034,183.12,183.11,6.89098999]
[1761863757132,4.08253997,183.12,183.11,6.89098999]
[1761863757316,12.76871029,183.12,183.11,6.89098999]
[1761863757519,13.48871029,183.12,183.11,6.89098999]
[1761863759346,23.27753798,183.12,183.11,6.89098999]
[1761863760433,23.27763159,183.12,183.11,6.89098999]
[1761863760819,29.41685751,183.12,183.11,6.89098999]
[1761863761018,23.27763159,183.12,183.11,6.89098999]
[1761863763939,27.86355944,183.12,183.11,6.89098999]
[1761863765140,23.27763159,183.12,183.11,6.89098999]
[1761863765955,27.86355944,183.12,183.11,6.89098999]
[1761863766129,23.27763159,183.12,183.11,6.89098999]
[1761863767534,20.05236122,183.12,183.11,6.89098999]
[1761863767733,23.25763159,183.12,183.11,6.89098999]
[1761863768145,27.89990395,183.12,183.11,6.89098999]
[1761863768347,7.30790395,183.12,183.11,7.57098999]
[1761863768549,27.89990395,183.12,183.11,7.57098999]
[1761863768940,33.3608039,183.12,183.11,7.57098999]
[1761863769246,33.3608039,183.12,183.11,6.89098999]
[1761863769954,5.45963719,183.17,183.11,13.03218817]
[1761863770166,7.29520476,183.16,183.12,0.68]
[1761863770331,4.06993439,183.15,183.12,0.68]
[1761863771037,4.06993439,183.15,183.12,3.90527037]
[1761863771247,3.22527037,183.16,183.13,0.68]
[1761863771530,4.07036479,183.15,183.13,0.68]
[1761863772028,3.22527037,183.16,183.13,0.68]
[1761863772244,8.68503206,183.16,183.13,0.68]
[1761863772449,5.45948609,183.17,183.13,0.68]
[1761863772652,23.81727037,183.18,183.13,9.36587109]
[1761863772855,23.81727037,183.18,183.14,0.68]
[1761863773445,29.27642013,183.18,183.14,0.68]
[1761863774153,3.22527037,183.15,183.11,7.57098999]
[1761863774343,3.22527037,183.14,183.11,7.57098999]
[1761863774741,3.22527037,183.14,183.12,0.68]
[1761863774944,3.22527037,183.13,183.11,6.89098999]
[1761863775145,3.92527037,183.12,183.11,6.89098999]
[1761863775547,29.97817032,183.12,183.11,6.89098999]
[1761863775857,33.34899097,183.12,183.11,6.89098999]
[1761863779056,43.85749579,183.12,183.11,6.89098999]
[1761863780135,43.13749579,183.12,183.11,6.89098999]
[1761863780336,3.22527037,183.14,183.11,7.61098999]
[1761863780542,3.22527037,183.14,183.12,0.72]
[1761863780743,5.45974671,183.16,183.12,0.72]
[1761863780956,6.17887657,183.19,183.12,9.4060665]
[1761863781267,7.29488033,183.18,183.13,0.72]
[1761863781450,3.22527037,183.18,183.13,0.72]
[1761863782050,3.22527037,183.18,183.13,6.18038008]
[1761863782350,5.45887657,183.19,183.13,6.18038008]
[1761863782555,3.22527037,183.18,183.14,0.72]
[1761863783060,3.22527037,183.19,183.14,0.72]
[1761863783361,3.22527037,183.19,183.14,3.94527037]
[1761863783742,3.22527037,183.19,183.15,0.72]
[1761863783943,35.83905961,183.21,183.15,0.72]
[1761863784150,3.22527037,183.19,183.15,0.72]
[1761863784349,3.22527037,183.19,183.15,6.17987782]
[1761863784758,3.22527037,183.19,183.16,0.72]
[1761863784958,5.45858412,183.2,183.16,0.72]
[1761863785150,7.29433153,183.19,183.16,0.72]
[1761863785349,20.592,183.21,183.16,9.40495427]
[1761863785553,20.592,183.21,183.17,3.22527037]
[1761863785766,20.592,183.21,183.17,3.94527037]
[1761863786067,3.22527037,183.22,183.18,0.72]
[1761863786252,4.06896837,183.21,183.18,0.72]
[1761863786454,3.22527037,183.23,183.18,3.94527037]
[1761863786654,4.06878801,183.22,183.18,3.94527037]
[1761863786854,4.06878801,183.22,183.19,0.72]
[1761863788143,3.22527037,183.23,183.19,6.17874572]
[1761863788453,23.81727037,183.23,183.19,6.17874572]
[1761863788653,23.81727037,183.23,183.2,0.72]
[1761863791049,23.81727037,183.23,183.2,6.17843993]
[1761863791250,20.592,183.23,183.2,6.17843993]
[1761863791451,3.22527037,183.24,183.21,0.72]
[1761863792649,8.68261261,183.24,183.21,0.72]
[1761863793383,3.22527037,183.24,183.21,0.72]
[1761863794766,3.22527037,183.23,183.21,0.72]
[1761863797177,15.24586474,183.25,183.21,0.72]
[1761863797380,2.06292569,183.24,183.21,6.17813189]
[1761863797552,0.77,183.27,183.22,2.06292569]
[1761863797553,2.16292569,183.27,183.22,2.06292569]
[1761863797752,2.16292569,183.27,183.22,2.78292569]
[1761863797953,2.16292569,183.27,183.23,0.72]
[1761863799080,0.1,183.27,183.23,2.78292569]
[1761863799287,0.1,183.27,183.24,5.45732372]
[1761863799485,0.1,183.27,183.24,6.17732372]
[1761863799778,0.1,183.27,183.25,0.72]
[1761863800548,0.1,183.27,183.25,2.78292569]
[1761863800768,0.1,183.27,183.26,0.72]
[1761863802170,5.5564304,183.27,183.26,0.72]
[1761863802367,5.5564304,183.27,183.24,2.06292569]
[1761863802566,5.5564304,183.27,183.25,0.72]
[1761863802953,0.1,183.29,183.25,37.90676566]
[1761863803158,0.1,183.33,183.29,20.592]
[1761863803352,0.1,183.33,183.32,22.65492569]
[1761863803576,37.44094856,183.34,183.33,20.592]
[1761863803880,37.44094856,183.34,183.33,23.37492569]
[1761863804270,37.44094856,183.34,183.31,2.78292569]
[1761863804475,37.44094856,183.34,183.31,0.72]
[1761863804796,42.89539326,183.34,183.31,0.72]
[1761863804968,37.44094856,183.34,183.31,2.78292569]
[1761863805374,42.89541844,183.34,183.31,2.78292569]
[1761863805557,37.44094856,183.34,183.32,0.72]
[1761863805989,37.44094856,183.34,183.32,2.78292569]
[1761863807104,37.44094856,183.34,183.32,0.72]
[1761863807670,37.44094856,183.34,183.29,20.592]
[1761863807671,2.06292569,183.33,183.29,0.72]
[1761863808293,2.73292569,183.33,183.29,0.72]
[1761863808881,42.89533632,183.34,183.27,82.292]
[1761863808882,8.18786786,183.32,183.27,61.7]
[1761863809065,8.18786786,183.32,183.26,2.78292569]
[1761863809260,37.44094856,183.34,183.32,9.78882769]
[1761863809587,37.44094856,183.34,183.33,2.06292569]
[1761863809781,37.44094856,183.34,183.33,21.312]
[1761863809782,36.30094856,183.34,183.33,21.312]
[1761863809969,36.30094856,183.34,183.33,23.37492569]
[1761863810358,36.30094856,183.34,183.33,21.312]
[1761863810775,36.30094856,183.34,183.33,23.37492569]
[1761863810984,36.30094856,183.34,183.33,28.82957031]
[1761863811660,36.30094856,183.34,183.33,26.76664462]
[1761863811861,36.30094856,183.34,183.33,28.82957031]
[1761863812090,36.30094856,183.34,183.33,2.06292569]
[1761863813187,36.30094856,183.34,183.33,7.51757031]
[1761863813489,36.30094856,183.34,183.33,9.580496]
[1761863813781,36.30094856,183.34,183.33,7.51757031]
[1761863815289,36.30094856,183.34,183.33,69.21757031]
[1761863817385,0.1,183.37,183.36,20.592]
[1761863817687,0.1,183.37,183.36,22.65492569]
[1761863819294,0.1,183.37,183.36,28.10867787]
[1761863822702,0.1,183.37,183.36,89.80867787]
[1761863823695,0.1,183.37,183.36,67.15375218]
[1761863823866,0.1,183.37,183.36,69.21667787]
[1761863824488,0.1,183.37,183.36,67.15375218]
[1761863824684,0.1,183.37,183.36,69.21667787]
[1761863827796,0.81,183.37,183.36,67.15375218]
[1761863827997,0.1,183.37,183.36,69.21667787]
[1761863830982,0.81,183.37,183.36,67.15375218]
[1761863831708,0.81,183.37,183.35,61.7]
[1761863831907,2.06292569,183.36,183.28,61.7]
[1761863832210,0.81,183.37,183.29,5.45583501]
[1761863832406,0.71,183.36,183.32,2.06292569]
[1761863832619,0.71,183.36,183.29,19.09542254]
[1761863832789,0.71,183.36,183.33,2.06292569]
[1761863833627,0.71,183.36,183.32,2.06292569]
[1761863834317,0.71,183.36,183.33,5.45464462]
[1761863835216,6.16376968,183.36,183.31,7.51799671]
[1761863835515,2.06292569,183.35,183.31,5.45507102]
[1761863835692,0.66,183.35,183.31,7.51799671]
[1761863835892,0.66,183.34,183.31,7.51799671]
[1761863836419,0.66,183.34,183.3,2.06292569]
[1761863836722,0.66,183.45,183.33,20.38777928]
[1761863836892,0.66,183.44,183.41,2.06292569]
[1761863837922,0.66,183.46,183.41,2.06292569]
[1761863838419,2.16292569,183.49,183.45,5.45107658]
[1761863838713,0.66,183.46,183.44,5.45132923]
[1761863839293,5.24307632,183.45,183.36,5.24307632]
[1761863839513,5.24307632,183.43,183.37,5.24307632]
[1761863839696,5.24307632,183.43,183.36,5.24307632]
[1761863839895,5.24307632,183.43,183.35,20.592]
[1761863839896,5.24307632,183.41,183.35,5.24307632]
[1761863840213,5.90307632,183.42,183.35,5.24307632]
[1761863840519,0.66,183.41,183.35,5.24307632]
[1761863840816,0.66,183.41,183.36,5.45375218]
[1761863841027,0.66,183.41,183.36,24.33120895]
[1761863841224,0.66,183.41,183.37,5.24307632]
[1761863842308,0.66,183.41,183.38,5.24307632]
[1761863842494,0.66,183.41,183.39,5.45286002]
[1761863842817,0.66,183.41,183.39,67.15286002]
[1761863844011,0.66,183.41,183.39,61.7]
[1761863844245,0.1,183.49,183.4,31.28763902]
[1761863844519,0.66,183.48,183.44,5.24307632]
[1761863844713,0.66,183.48,183.45,5.24307632]
[1761863845906,0.66,183.48,183.46,5.45077946]
[1761863847995,0.66,183.48,183.46,10.69385578]
[1761863848221,0.1,183.49,183.46,10.69385578]
[1761863848442,0.76,183.49,183.47,5.24307632]
[1761863848795,0.76,183.49,183.41,13.63012294]
[1761863848998,0.76,183.49,183.44,5.24307632]
[1761863849706,4.82547959,183.49,183.45,5.45107658]
[1761863850218,0.72,183.48,183.45,5.45107658]
[1761863852012,0.72,183.48,183.45,10.6941529]
[1761863852615,0.72,183.48,183.46,5.24307632]
[1761863853805,0.72,183.48,183.45,18.87076778]
[1761863854327,0.72,183.48,183.46,5.45071801]
[1761863855937,0.72,183.48,183.45,5.45107658]
[1761863856521,0.1,183.49,183.47,5.24307632]
[1761863856704,0.72,183.48,183.46,5.24307632]
[1761863856905,0.72,183.48,183.45,24.32184436]
[1761863857336,0.72,183.48,183.45,5.45107658]
[1761863857638,0.72,183.48,183.45,13.3547481]
[1761863857852,0.72,183.48,183.45,5.45107658]
[1761863858337,0.1,183.49,183.45,19.07876804]
[1761863858520,0.72,183.48,183.46,7.90367152]
[1761863858710,0.72,183.48,183.45,5.45107658]
[1761863860241,0.72,183.48,183.43,13.6291646]
[1761863860448,0.72,183.48,183.42,5.45196816]
[1761863860608,0.72,183.48,183.42,13.35563968]
[1761863860949,7.90367152,183.45,183.38,13.6328562]
[1761863861235,0.72,183.44,183.38,13.6328562]
[1761863861420,0.72,183.44,183.39,7.90367152]
[1761863862210,0.72,183.44,183.34,82.292]
[1761863862211,0.72,183.44,183.41,13.35568421]
[1761863862852,0.72,183.44,183.41,5.45201269]
[1761863867272,0.72,183.44,183.41,67.15201269]
[1761863869066,0.72,183.44,183.38,7.90367152]
[1761863869067,0.72,183.44,183.4,5.45255313]
[1761863870285,18.14396195,183.44,183.38,5.45301793]
[1761863870473,14.07505483,183.44,183.38,5.45301793]
[1761863870787,0.72,183.43,183.38,5.45301793]
[1761863870974,4.78938372,183.43,183.38,5.45301793]
[1761863871480,0.72,183.42,183.37,7.90367152]
[1761863872382,0.72,183.42,183.34,20.592]
[1761863872383,0.72,183.44,183.39,7.90367152]
[1761863872584,0.72,183.42,183.39,7.90367152]
[1761863872969,0.72,183.42,183.39,69.60367152]
[1761863873789,0.72,183.42,183.4,5.4525627]
[1761863875685,0.72,183.44,183.4,13.35623422]
[1761863876395,0.72,183.44,183.4,26.98764098]
[1761863877594,0.72,183.44,183.41,7.90367152]
[1761863877797,20.592,183.47,183.42,7.90367152]
[1761863877988,0.72,183.47,183.43,7.90367152]
[1761863878166,0.72,183.46,183.43,7.90367152]
[1761863878371,0.72,183.46,183.44,5.45137374]
[1761863879185,0.72,183.46,183.43,61.7]
[1761863879387,12.69543387,183.46,183.43,61.7]
[1761863879590,4.07176235,183.45,183.43,67.1516315]
[1761863879903,0.71,183.45,183.43,67.1516315]
[1761863880198,0.71,183.44,183.43,67.1516315]
[1761863881600,4.78332121,183.44,183.43,67.1516315]
[1761863881800,4.78332121,183.44,183.43,5.4516315]
[1761863882003,0.71,183.47,183.43,5.4516315]
[1761863882212,4.07875638,183.48,183.44,3.21573891]
[1761863882404,4.78875638,183.48,183.44,3.21573891]
[1761863882713,0.71,183.48,183.44,3.21573891]
[1761863882893,0.71,183.47,183.45,5.45107658]
[1761863883312,0.71,183.47,183.45,8.66681549]
[1761863883743,0.81,183.49,183.46,3.21573891]
[1761863884030,0.81,183.49,183.45,22.29450695]
[1761863884813,0.81,183.49,183.46,3.21573891]
[1761863885208,0.81,183.49,183.47,5.45048236]
[1761863887419,0.1,183.49,183.47,8.66622127]
[1761863888431,0.1,183.49,183.48,3.21573891]
[1761863888924,0.1,183.49,183.47,8.66622127]
[1761863889414,0.71,183.48,183.46,3.21573891]
[1761863889612,0.71,183.48,183.46,5.45070206]
[1761863889613,4.07478819,183.47,183.46,5.45070206]
[1761863890506,0.81,183.49,183.46,5.45070206]
[1761863890704,4.07454799,183.48,183.46,5.45070206]
[1761863890925,0.81,183.49,183.46,5.45070206]
[1761863891230,4.0745476,183.48,183.46,5.45070206]
[1761863891414,0.81,183.49,183.46,19.07765071]
[1761863891616,4.78428645,183.48,183.46,19.07765071]
[1761863891926,0.1,183.49,183.47,3.21573891]
[1761863892235,0.1,183.49,183.46,5.45070206]
[1761863892236,0.81,183.49,183.46,5.45070206]
[1761863892436,4.07351593,183.48,183.46,5.45070206]
[1761863892599,4.07351593,183.47,183.46,5.45070206]
[1761863893109,4.78351593,183.47,183.46,5.45070206]
[1761863893314,4.78351593,183.47,183.43,3.21573891]
[1761863893518,4.78351593,183.46,183.41,19.08292895]
[1761863893826,4.07351593,183.45,183.41,19.08292895]
[1761863894029,4.07351593,183.44,183.41,19.08292895]
[1761863894217,4.07351593,183.43,183.41,19.08292895]
[1761863894414,0.71,183.43,183.41,22.29866786]
[1761863894823,0.71,183.43,183.41,19.08292895]
[1761863895025,4.07528938,183.42,183.41,19.08292895]
[1761863895215,4.07528938,183.42,183.41,5.45226541]
[1761863895437,4.78528938,183.42,183.41,5.45226541]
[1761863896712,4.78528938,183.42,183.39,5.45259209]
[1761863897027,4.78528938,183.41,183.39,5.45259209]
[1761863897236,4.07528938,183.4,183.39,5.45259209]
[1761863897823,4.78528938,183.4,183.39,5.45259209]
[1761863898440,4.07528938,183.4,183.39,8.668331]
[1761863898833,4.78528938,183.4,183.39,5.45259209]
[1761863899040,4.78528938,183.4,183.38,3.21573891]
[1761863899230,4.07528938,183.39,183.38,3.21573891]
[1761863899439,4.07528938,183.39,183.38,8.66889628]
[1761863900139,0.71,183.41,183.38,22.30178972]
[1761863900325,4.07425363,183.4,183.38,22.30178972]
[1761863900523,0.71,183.41,183.35,19.08861906]
[1761863900845,4.78419972,183.4,183.36,3.21573891]
[1761863901022,4.07419972,183.39,183.36,3.21573891]
[1761863901223,0.71,183.39,183.36,3.21573891]
[1761863901536,0.71,183.39,183.37,5.45345476]
[1761863904655,4.07337818,183.38,183.37,5.45345476]
[1761863905165,4.78337818,183.38,183.37,5.45345476]
[1761863905326,4.78337818,183.38,183.36,5.45375218]
[1761863905623,0.71,183.38,183.36,5.45375218]
[1761863905826,4.78314525,183.37,183.36,5.45375218]
[1761863906956,4.78314525,183.37,183.33,19.09055929]
[1761863907150,4.78314525,183.36,183.33,19.09055929]
[1761863907360,0.71,183.36,183.33,22.3062982]
[1761863907561,0.71,183.36,183.33,19.09055929]
[1761863907741,0.71,183.36,183.33,22.3062982]
[1761863907940,4.78161581,183.36,183.33,22.3062982]
[1761863908251,0.71,183.36,183.33,22.3062982]
[1761863908569,0.71,183.35,183.33,5.45464462]
[1761863908765,0.71,183.35,183.33,67.15464462]
[1761863909676,3.92573891,183.35,183.32,65.77135496]
[1761863909856,4.75039379,183.34,183.32,61.7]
[1761863910256,0.68,183.33,183.32,61.7]
[1761863911142,4.07039379,183.34,183.32,61.7]
[1761863911352,0.68,183.34,183.32,67.15490546]
[1761863911553,0.68,183.33,183.32,67.15490546]
[1761863911765,4.06776023,183.34,183.32,67.15490546]
[1761863911949,4.74776023,183.34,183.32,67.15490546]
[1761863912152,0.68,183.34,183.32,67.15490546]
[1761863914556,4.74783108,183.34,183.28,5.45613269]
[1761863914765,3.21573891,183.33,183.28,12.73970268]
[1761863915065,3.89573891,183.33,183.28,12.73970268]
[1761863915264,0.68,183.32,183.28,26.38003441]
[1761863915471,0.68,183.32,183.28,23.1642955]
[1761863915666,0.68,183.32,183.28,26.38003441]
[1761863919369,0.68,183.32,183.28,25.22521097]
[1761863919573,2.74091547,183.32,183.28,23.1642955]
[1761863919987,0.68,183.31,183.28,84.8642955]
[1761863921055,0.68,183.31,183.28,86.92521097]
[1761863921251,0.68,183.31,183.28,84.8642955]
[1761863921879,0.68,183.31,183.28,67.15613269]
[1761863922070,2.06091547,183.3,183.27,10.9106077]
[1761863922277,2.06091547,183.28,183.27,5.45640658]
[1761863922680,2.74091547,183.28,183.26,5.45664248]
[1761863923009,2.74091547,183.27,183.25,67.15696083]
[1761863923167,2.06091547,183.26,183.24,5.45723334]
[1761863923376,2.74091547,183.26,183.23,5.45762156]
[1761863923573,0.68,183.25,183.23,5.45762156]
[1761863923781,2.06091547,183.28,183.23,5.45762156]
[1761863924077,0.68,183.25,183.23,5.45762156]
[1761863924679,9.78882769,183.29,183.23,5.45762156]
[1761863924889,0.68,183.27,183.23,5.45762156]
[1761863925493,20.592,183.32,183.26,2.06091547]
[1761863925682,0.68,183.31,183.28,2.06091547]
[1761863925876,0.68,183.31,183.28,63.76091547]
[1761863926368,0.68,183.33,183.29,2.06091547]
[1761863926568,0.68,183.33,183.3,2.06091547]
[1761863927001,0.68,183.33,183.31,5.45523975]
[1761863927575,5.45377462,183.36,183.31,5.45523975]
[1761863927576,2.06091547,183.36,183.31,5.45523975]
[1761863927896,0.68,183.36,183.34,2.06091547]
[1761863928195,4.04950594,183.38,183.34,2.06091547]
[1761863928385,0.68,183.38,183.35,2.06091547]
[1761863928587,0.68,183.4,183.35,2.06091547]
[1761863928799,11.84974316,183.42,183.36,2.06091547]
[1761863928982,0.68,183.41,183.37,7.51437023]
[1761863929184,20.592,183.4,183.37,5.45345476]
[1761863929705,0.68,183.39,183.37,5.45345476]
[1761863929876,2.74091547,183.39,183.33,2.06091547]
[1761863930076,2.06091547,183.36,183.32,5.45491311]
[1761863930497,0.68,183.35,183.31,21.85892389]
[1761863931083,0.68,183.35,183.31,37.55793875]
[1761863931496,0.68,183.37,183.33,2.06091547]
[1761863931694,9.78882769,183.38,183.32,2.06091547]
[1761863931902,2.74091547,183.37,183.32,2.06091547]
[1761863932405,0.68,183.36,183.32,2.06091547]
[1761863932786,0.68,183.36,183.32,5.45469173]
[1761863933086,0.68,183.36,183.32,7.5156072]
[1761863934000,0.68,183.36,183.32,5.45469173]
[1761863934215,0.68,183.36,183.32,7.5156072]
[1761863934514,4.73992821,183.36,183.32,69.2156072]
[1761863934890,0.68,183.35,183.32,69.2156072]
[1761863937275,0.68,183.35,183.32,74.66851208]
[1761863937587,11.84974316,183.38,183.32,88.30586752]
[1761863937899,6.12822403,183.37,183.32,88.30586752]
[1761863938076,4.06730856,183.36,183.32,88.30586752]
[1761863938277,4.06730856,183.35,183.32,88.30586752]
[1761863938477,2.06091547,183.37,183.32,88.30586752]
[1761863938778,4.06960155,183.36,183.32,72.60759661]
[1761863938979,4.06960155,183.35,183.32,72.60759661]
[1761863939276,2.06091547,183.36,183.32,72.60759661]
[1761863939277,4.06960155,183.34,183.32,72.60759661]
[1761863939472,0.7,183.35,183.32,72.60759661]
[1761863939699,4.07123775,183.34,183.32,72.60759661]
[1761863939878,0.7,183.35,183.32,72.60759661]
[1761863940074,4.07123711,183.34,183.32,72.60759661]
[1761863940279,0.7,183.35,183.32,72.60759661]
[1761863940506,4.07205636,183.34,183.32,72.60759661]
[1761863940803,0.7,183.35,183.32,72.60759661]
[1761863940984,4.07205675,183.34,183.32,72.60759661]
[1761863941302,0.7,183.35,183.32,86.24495205]
[1761863941603,4.07317385,183.34,183.32,86.24495205]
[1761863941912,0.7,183.35,183.32,72.60759661]
[1761863942117,4.07317425,183.34,183.32,72.60759661]
[1761863942327,0.7,183.35,183.32,72.60759661]
[1761863942530,4.07405392,183.34,183.32,72.60759661]
[1761863942737,0.7,183.35,183.32,88.30586752]
[1761863942930,6.13922592,183.46,183.32,88.30586752]
[1761863942931,8.23746285,183.49,183.35,32.38082768]
[1761863943242,0.1,183.49,183.47,2.06091547]
[1761863943815,0.1,183.49,183.48,2.18525499]
[1761863944016,2.86091547,183.49,183.48,2.18525499]
[1761863944326,0.8,183.49,183.44,2.18573263]
[1761863944526,2.06091547,183.45,183.44,2.18573263]
[1761863944737,2.06091547,183.47,183.44,2.18573263]
[1761863944900,0.7,183.47,183.44,2.18573263]
[1761863945299,0.7,183.47,183.44,7.63701881]
[1761863946904,2.76091547,183.47,183.44,7.63701881]
[1761863947311,0.7,183.46,183.44,7.63701881]
[1761863948220,20.692,183.49,183.44,7.63701881]
[1761863948415,0.7,183.47,183.44,7.63701881]
[1761863950838,2.06091547,183.45,183.44,1.46573263]
[1761863951004,20.592,183.44,183.36,7.51466765]
[1761863951331,2.06091547,183.41,183.39,16.39747478]
[1761863951507,2.06091547,183.41,183.36,7.51466765]
[1761863951708,2.06091547,183.41,183.37,16.39747478]
[1761863951905,0.7,183.4,183.38,5.45315737]
[1761863952225,2.06091547,183.41,183.37,21.85088911]
[1761863952401,0.7,183.41,183.37,21.85088911]
[1761863952804,2.76091547,183.41,183.37,21.85088911]
[1761863953701,0.7,183.4,183.37,21.85088911]
[1761863953901,2.76091547,183.4,183.37,21.85088911]
[1761863954106,2.06091547,183.39,183.34,14.29585251]
[1761863954313,2.76091547,183.4,183.34,16.35676798]
[1761863954519,2.76091547,183.4,183.36,16.400164]
[1761863955034,0.7,183.39,183.36,16.400164]
[1761863955240,0.7,183.39,183.37,5.45345476]
[1761863957929,0.1,183.49,183.38,12.67190473]
[1761863958111,0.1,183.49,183.43,22.65291547]
[1761863958433,0.1,183.49,183.44,2.06091547]
[1761863958738,0.1,183.49,183.45,2.06091547]
[1761863958924,0.1,183.49,183.45,2.74091547]
[1761863959313,0.1,183.49,183.46,2.18537438]
[1761863959725,0.78,183.49,183.46,2.18537438]
[1761863960130,0.78,183.49,183.47,5.45048236]
[1761863960630,0.1,183.49,183.47,5.45048236]
[1761863960822,0.78,183.49,183.47,5.45048236]
[1761863962540,0.78,183.49,183.48,2.18549378]
[1761863962840,0.78,183.49,183.48,7.63567908]
[1761863963937,0.1,183.49,183.48,7.63567908]
[1761863964940,0.78,183.49,183.48,7.63567908]
[1761863967948,0.1,183.49,183.48,7.63567908]
[1761863969434,0.1,183.49,183.48,5.4501853]
[1761863971624,0.76,183.49,183.47,69.21136521]
[1761863972037,0.76,183.49,183.47,67.15044974]
[1761863975557,0.76,183.49,183.47,5.45044974]
[1761863975943,0.76,183.49,183.46,7.51169493]
[1761863976959,0.76,183.49,183.46,5.45077946]
[1761863979450,0.76,183.49,183.46,7.51169493]
[1761863980062,0.76,183.49,183.46,5.45077946]
[1761863980259,4.81733246,183.49,183.46,5.45077946]
[1761863980650,0.66,183.48,183.46,5.45077946]
[1761863980842,0.66,183.48,183.45,5.45102579]
[1761863980843,2.72091547,183.48,183.45,5.45102579]
[1761863981039,0.66,183.48,183.44,7.51220973]
[1761863981237,0.66,183.47,183.44,5.45129426]
[1761863981466,0.66,183.47,183.44,8.66595038]
[1761863984464,0.66,183.47,183.44,67.15129426]
[1761863987267,4.71894443,183.47,183.44,67.15129426]
[1761863987465,4.05894443,183.47,183.44,67.15129426]
[1761863987771,4.05894443,183.47,183.44,71.06595038]
[1761863987945,4.71894443,183.47,183.44,67.15129426]
[1761863988151,4.07146095,183.46,183.44,67.15129426]
[1761863988448,0.66,183.47,183.44,67.15129426]
[1761863988879,4.7315102,183.47,183.44,67.15129426]
[1761863989186,4.0715102,183.46,183.44,67.85129426]
[1761863989342,0.66,183.48,183.44,67.85129426]
[1761863989540,4.07152871,183.47,183.44,67.85129426]
[1761863990161,4.07152871,183.47,183.44,67.15129426]
[1761863990976,4.07152871,183.47,183.44,83.99438474]
[1761863991271,0.1,183.49,183.45,3.91465612]
[1761863991471,4.07121659,183.48,183.45,3.91465612]
[1761863991850,4.07121659,183.48,183.45,3.21465612]
[1761863992244,4.07121659,183.48,183.44,81.47972862]
[1761863992467,4.73121659,183.48,183.44,84.69438474]
[1761863992662,4.07121659,183.48,183.44,83.99438474]
[1761863992973,4.73121659,183.48,183.44,81.47972862]
[1761863993556,7.94587271,183.47,183.44,67.15129426]
[1761863993755,3.21465612,183.45,183.42,67.15176583]
[1761863993968,7.28657512,183.44,183.42,67.15176583]
[1761863994283,0.66,183.44,183.42,67.15176583]
[1761863994453,4.7318212,183.44,183.42,67.15176583]
[1761863995852,4.0718212,183.44,183.42,67.15176583]
[1761863996057,0.66,183.43,183.42,67.15176583]
[1761863996261,3.87465612,183.44,183.42,67.15176583]